[Event "Chessable Masters - Torneo preliminare"]
[White "Sourath, Biswas"]
[Black "Matamoros Franco, Carlos S."]
[WhiteFideId "35091484"]
[BlackFideId "3600017"]
[WhiteElo "2138"]
[BlackElo "2407"]
[Result "0-1"]
[Round "9"]
[TimeControl "600+2"]
[Date "2023.03.13"]
[WhiteClock "0:06:00"]
[BlackClock "0:02:58"]

1. d4 {[%clk 0:10:01]}  Nf6 {[%clk 0:09:59]} 2. Bf4 {[%clk 0:10:03]}  d5 {[%clk 0:09:57]} 3. e3 {[%clk 0:10:03]}  Bg4 {[%clk 0:09:57]} 4. Qd3 {[%clk 0:10:02]}  Nbd7 {[%clk 0:09:50]} 5. c4 {[%clk 0:10:01]}  e6 {[%clk 0:09:45]} 6. Qb3 {[%clk 0:10:00]}  c5 {[%clk 0:09:20]} 7. Nc3 {[%clk 0:09:58]}  Be7 {[%clk 0:08:37]} 8. h3 {[%clk 0:09:41]}  Bh5 {[%clk 0:08:35]} 9. Bd3 {[%clk 0:09:32]}  cxd4 {[%clk 0:08:22]} 10. exd4 {[%clk 0:09:33]}  dxc4 {[%clk 0:08:23]} 11. Bxc4 {[%clk 0:09:34]}  O-O {[%clk 0:08:23]} 12. Nge2 {[%clk 0:09:27]}  Nb6 {[%clk 0:08:19]} 13. Bd3 {[%clk 0:09:28]}  Nfd5 {[%clk 0:08:14]} 14. Bd2 {[%clk 0:09:29]}  Nxc3 {[%clk 0:07:56]} 15. bxc3 {[%clk 0:09:29]}  Qd5 {[%clk 0:07:50]} 16. Qxd5 {[%clk 0:09:30]}  Nxd5 {[%clk 0:07:35]} 17. Nf4 {[%clk 0:09:31]}  Nxf4 {[%clk 0:07:35]} 18. Bxf4 {[%clk 0:09:33]}  Rac8 {[%clk 0:07:28]} 19. Kd2 {[%clk 0:09:33]}  Rfd8 {[%clk 0:07:25]} 20. Rhb1 {[%clk 0:09:29]}  b6 {[%clk 0:06:56]} 21. a4 {[%clk 0:09:29]}  g5 {[%clk 0:06:27]} 22. Be5 {[%clk 0:09:27]}  Bd6 {[%clk 0:06:19]} 23. Bxd6 {[%clk 0:09:16]}  Rxd6 {[%clk 0:06:20]} 24. Rb5 {[%clk 0:09:18]}  f6 {[%clk 0:06:11]} 25. a5 {[%clk 0:09:04]}  Be8 {[%clk 0:05:54]} 26. Rb4 {[%clk 0:09:03]}  Bg6 {[%clk 0:05:44]} 27. axb6 {[%clk 0:08:45]}  axb6 {[%clk 0:05:46]} 28. Ra6 {[%clk 0:08:40]}  Rcc6 {[%clk 0:05:46]} 29. Bb5 {[%clk 0:08:19]}  Rc7 {[%clk 0:05:32]} 30. Be2 {[%clk 0:08:20]}  e5 {[%clk 0:05:15]} 31. Rbxb6 {[%clk 0:08:16]}  Rxb6 {[%clk 0:05:15]} 32. Rxb6 {[%clk 0:08:18]}  exd4 {[%clk 0:05:16]} 33. cxd4 {[%clk 0:08:12]}  Kg7 {[%clk 0:04:54]} 34. Bd3 {[%clk 0:07:12]}  Ra7 {[%clk 0:04:48]} 35. Bxg6 {[%clk 0:07:06]}  Kxg6 {[%clk 0:04:50]} 36. Kc3 {[%clk 0:06:59]}  Kf5 {[%clk 0:04:34]} 37. g4+ {[%clk 0:06:32]}  Ke4 {[%clk 0:04:27]} 38. Re6+ {[%clk 0:06:33]}  Kd5 {[%clk 0:04:28]} 39. Rxf6 {[%clk 0:06:34]}  Ra3+ {[%clk 0:04:29]} 40. Kd2 {[%clk 0:06:19]}  Rxh3 {[%clk 0:04:18]} 41. f3 {[%clk 0:06:19]}  Kxd4 {[%clk 0:04:09]} 42. Rd6+ {[%clk 0:06:15]}  Ke5 {[%clk 0:04:09]} 43. Ra6 {[%clk 0:06:17]}  Rxf3 {[%clk 0:04:01]} 44. Rh6 {[%clk 0:06:18]}  Kf4 {[%clk 0:03:56]} 45. Rxh7 {[%clk 0:06:11]}  Kxg4 {[%clk 0:03:57]} 46. Ke2 {[%clk 0:06:13]}  Kg3 {[%clk 0:03:51]} 47. Rh1 {[%clk 0:06:10]}  g4 {[%clk 0:03:25]} 48. Rg1+ {[%clk 0:06:10]}  Kh3 {[%clk 0:03:26]} 49. Rh1+ {[%clk 0:05:59]}  Kg2 {[%clk 0:03:25]} 50. Rh4 {[%clk 0:06:01]}  g3 {[%clk 0:03:25]} 51. Rg4 {[%clk 0:06:02]}  Rf8 {[%clk 0:03:23]} 52. Rg7 {[%clk 0:06:01]}  Re8+ {[%clk 0:03:23]} 53. Kd2 {[%clk 0:05:58]}  Kf2 {[%clk 0:03:23]} 54. Rf7+ {[%clk 0:05:59]}  Kg1 {[%clk 0:03:24]} 55. Rf6 {[%clk 0:05:58]}  g2 {[%clk 0:03:24]} 56. Rg6 {[%clk 0:05:59]}  Rh8 {[%clk 0:03:22]} 57. Ke2 {[%clk 0:05:58]}  Kh1 {[%clk 0:03:19]} 58. Kf2 {[%clk 0:05:59]}  Rf8+ {[%clk 0:03:03]} 59. Ke2 {[%clk 0:06:00]}  g1=Q {[%clk 0:02:58]} 0-1


[Site "Internet"]

[Event "Chessable Masters - Torneo preliminare"]
[White "Pranav, V"]
[Black "Cuenca Jimenez, Jose Fernando"]
[WhiteFideId "25060783"]
[BlackFideId "2255570"]
[WhiteElo "2462"]
[BlackElo "2455"]
[Result "1-0"]
[Round "9"]
[TimeControl "600+2"]
[Date "2023.03.13"]
[WhiteClock "0:03:29"]
[BlackClock "0:00:17"]

1. e4 {[%clk 0:10:01]}  c5 {[%clk 0:10:00]} 2. Nf3 {[%clk 0:10:00]}  Nc6 {[%clk 0:10:01]} 3. Bb5 {[%clk 0:10:00]}  e6 {[%clk 0:10:02]} 4. Bxc6 {[%clk 0:10:00]}  bxc6 {[%clk 0:10:03]} 5. d3 {[%clk 0:10:02]}  Ne7 {[%clk 0:10:04]} 6. O-O {[%clk 0:10:02]}  Ng6 {[%clk 0:10:05]} 7. Ng5 {[%clk 0:10:02]}  f6 {[%clk 0:09:40]} 8. Nh3 {[%clk 0:10:01]}  d5 {[%clk 0:09:38]} 9. Nc3 {[%clk 0:09:57]}  Bd6 {[%clk 0:09:36]} 10. f4 {[%clk 0:09:56]}  O-O {[%clk 0:09:30]} 11. Bd2 {[%clk 0:08:59]}  Qc7 {[%clk 0:06:38]} 12. b3 {[%clk 0:08:45]}  Ba6 {[%clk 0:06:21]} 13. Qh5 {[%clk 0:08:18]}  Rae8 {[%clk 0:05:50]} 14. Rae1 {[%clk 0:08:15]}  c4 {[%clk 0:05:25]} 15. bxc4 {[%clk 0:08:10]}  dxc4 {[%clk 0:05:19]} 16. d4 {[%clk 0:08:10]}  Qb6 {[%clk 0:04:55]} 17. Ne2 {[%clk 0:07:15]}  c5 {[%clk 0:04:28]} 18. Be3 {[%clk 0:06:58]}  cxd4 {[%clk 0:04:17]} 19. Bxd4 {[%clk 0:06:59]}  Qc6 {[%clk 0:04:04]} 20. Nc3 {[%clk 0:06:41]}  e5 {[%clk 0:03:50]} 21. fxe5 {[%clk 0:06:20]}  Bxe5 {[%clk 0:03:49]} 22. Bxe5 {[%clk 0:06:21]}  Rxe5 {[%clk 0:03:47]} 23. Qf3 {[%clk 0:06:21]}  Bb7 {[%clk 0:03:32]} 24. Qe3 {[%clk 0:06:09]}  Qc5 {[%clk 0:03:10]} 25. Qxc5 {[%clk 0:06:06]}  Rxc5 {[%clk 0:03:12]} 26. Rb1 {[%clk 0:06:07]}  Bc6 {[%clk 0:03:13]} 27. a4 {[%clk 0:06:00]}  Re8 {[%clk 0:03:13]} 28. Nf2 {[%clk 0:05:53]}  Ne5 {[%clk 0:03:04]} 29. Rfd1 {[%clk 0:05:50]}  Kf7 {[%clk 0:03:04]} 30. Kf1 {[%clk 0:05:49]}  h5 {[%clk 0:02:37]} 31. Rd4 {[%clk 0:05:42]}  h4 {[%clk 0:02:32]} 32. h3 {[%clk 0:05:09]}  Rh8 {[%clk 0:02:13]} 33. Nfd1 {[%clk 0:05:06]}  Re8 {[%clk 0:01:40]} 34. Ne3 {[%clk 0:05:06]}  g6 {[%clk 0:01:11]} 35. Rb4 {[%clk 0:05:01]}  Rc8 {[%clk 0:01:02]} 36. Ke2 {[%clk 0:04:53]}  Ke6 {[%clk 0:00:57]} 37. Rb1 {[%clk 0:04:44]}  Ba8 {[%clk 0:00:55]} 38. Ned5 {[%clk 0:04:41]}  Bxd5 {[%clk 0:00:49]} 39. exd5+ {[%clk 0:04:42]}  Kd7 {[%clk 0:00:45]} 40. Ne4 {[%clk 0:04:43]}  Ra5 {[%clk 0:00:42]} 41. Rb7+ {[%clk 0:04:17]}  Rc7 {[%clk 0:00:41]} 42. Nxf6+ {[%clk 0:04:18]}  Kc8 {[%clk 0:00:43]} 43. Rxc7+ {[%clk 0:04:18]}  Kxc7 {[%clk 0:00:45]} 44. d6+ {[%clk 0:04:20]}  Kd8 {[%clk 0:00:46]} 45. Re4 {[%clk 0:04:10]}  g5 {[%clk 0:00:26]} 46. Ke3 {[%clk 0:04:03]}  c3 {[%clk 0:00:24]} 47. Kd4 {[%clk 0:03:39]}  Nc6+ {[%clk 0:00:24]} 48. Kxc3 {[%clk 0:03:40]}  Re5 {[%clk 0:00:21]} 49. Rxe5 {[%clk 0:03:41]}  Nxe5 {[%clk 0:00:23]} 50. Kd4 {[%clk 0:03:42]}  Ng6 {[%clk 0:00:18]} 51. c4 {[%clk 0:03:27]}  Nf4 {[%clk 0:00:17]} 52. c5 {[%clk 0:03:28]}  Ne6+ {[%clk 0:00:18]} 53. Kc4 {[%clk 0:03:28]}  a6 {[%clk 0:00:17]} 54. c6 {[%clk 0:03:29]} 1-0


[Site "Internet"]

[Event "Chessable Masters - Torneo preliminare"]
[White "Rustemov, Alexander"]
[Black "Iskusnyh, Sergei"]
[WhiteFideId "4119002"]
[BlackFideId "4120027"]
[WhiteElo "2494"]
[BlackElo "2345"]
[Result "1-0"]
[Round "9"]
[TimeControl "600+2"]
[Date "2023.03.13"]
[WhiteClock "0:00:21"]
[BlackClock "0:00:11"]

1. d4 {[%clk 0:10:01]}  d5 {[%clk 0:10:00]} 2. c4 {[%clk 0:10:01]}  c6 {[%clk 0:10:01]} 3. Nc3 {[%clk 0:09:53]}  Nf6 {[%clk 0:10:01]} 4. e3 {[%clk 0:09:53]}  Bf5 {[%clk 0:09:53]} 5. cxd5 {[%clk 0:09:50]}  cxd5 {[%clk 0:09:48]} 6. Qb3 {[%clk 0:09:52]}  Nc6 {[%clk 0:09:41]} 7. Qxb7 {[%clk 0:09:51]}  Bd7 {[%clk 0:09:32]} 8. Qb3 {[%clk 0:09:51]}  Rb8 {[%clk 0:09:26]} 9. Qd1 {[%clk 0:09:52]}  e5 {[%clk 0:09:24]} 10. Nge2 {[%clk 0:09:54]}  Bd6 {[%clk 0:08:52]} 11. dxe5 {[%clk 0:09:51]}  Nxe5 {[%clk 0:08:44]} 12. Nf4 {[%clk 0:09:50]}  g5 {[%clk 0:08:37]} 13. Nfxd5 {[%clk 0:09:46]}  Nxd5 {[%clk 0:08:34]} 14. Qxd5 {[%clk 0:09:32]}  Bc6 {[%clk 0:08:29]} 15. Qd4 {[%clk 0:09:22]}  Rb4 {[%clk 0:07:42]} 16. Qd1 {[%clk 0:09:05]}  O-O {[%clk 0:07:24]} 17. b3 {[%clk 0:08:38]}  Qf6 {[%clk 0:06:24]} 18. Bb2 {[%clk 0:07:56]}  Rd8 {[%clk 0:06:19]} 19. Qc2 {[%clk 0:07:35]}  Bf8 {[%clk 0:05:42]} 20. Rd1 {[%clk 0:07:23]}  Rbb8 {[%clk 0:05:39]} 21. Rxd8 {[%clk 0:06:21]}  Rxd8 {[%clk 0:05:38]} 22. a3 {[%clk 0:06:02]}  Bg7 {[%clk 0:04:16]} 23. e4 {[%clk 0:05:42]}  g4 {[%clk 0:03:37]} 24. Be2 {[%clk 0:05:40]}  Qg5 {[%clk 0:03:15]} 25. Bc1 {[%clk 0:05:24]}  Qg6 {[%clk 0:03:08]} 26. Be3 {[%clk 0:04:50]}  Rc8 {[%clk 0:02:50]} 27. Nd5 {[%clk 0:04:43]}  Re8 {[%clk 0:02:38]} 28. Nf4 {[%clk 0:03:40]}  Qd6 {[%clk 0:01:47]} 29. O-O {[%clk 0:02:46]}  Qxa3 {[%clk 0:01:48]} 30. Nh5 {[%clk 0:02:34]}  Bh8 {[%clk 0:01:46]} 31. Bc5 {[%clk 0:02:23]}  Qa5 {[%clk 0:01:39]} 32. b4 {[%clk 0:02:14]}  Qd8 {[%clk 0:01:39]} 33. Bxa7 {[%clk 0:01:59]}  Qa8 {[%clk 0:01:27]} 34. Bd4 {[%clk 0:01:30]}  Bxe4 {[%clk 0:01:19]} 35. Qd2 {[%clk 0:01:30]}  Qd8 {[%clk 0:00:53]} 36. Rd1 {[%clk 0:01:08]}  Bg6 {[%clk 0:00:45]} 37. Nf4 {[%clk 0:01:05]}  Qh4 {[%clk 0:00:29]} 38. g3 {[%clk 0:00:59]}  Qe7 {[%clk 0:00:27]} 39. Bxe5 {[%clk 0:00:55]}  Bxe5 {[%clk 0:00:21]} 40. Bxg4 {[%clk 0:00:43]}  Qf6 {[%clk 0:00:16]} 41. Nxg6 {[%clk 0:00:41]}  hxg6 {[%clk 0:00:18]} 42. b5 {[%clk 0:00:38]}  Bc7 {[%clk 0:00:17]} 43. Kg2 {[%clk 0:00:31]}  Bb6 {[%clk 0:00:17]} 44. Bf3 {[%clk 0:00:29]}  Rd8 {[%clk 0:00:15]} 45. Qe2 {[%clk 0:00:26]}  Rxd1 {[%clk 0:00:16]} 46. Qxd1 {[%clk 0:00:27]}  Qb2 {[%clk 0:00:17]} 47. Qe2 {[%clk 0:00:25]}  Qd4 {[%clk 0:00:18]} 48. h4 {[%clk 0:00:25]}  Kg7 {[%clk 0:00:19]} 49. Bc6 {[%clk 0:00:25]}  Qf6 {[%clk 0:00:18]} 50. Qf3 {[%clk 0:00:26]}  Qe5 {[%clk 0:00:15]} 51. Bd5 {[%clk 0:00:27]}  Qe7 {[%clk 0:00:13]} 52. Qc3+ {[%clk 0:00:24]}  Kh7 {[%clk 0:00:13]} 53. Qf3 {[%clk 0:00:20]}  Kg7 {[%clk 0:00:14]} 54. Qf4 {[%clk 0:00:21]}  Qe1 {[%clk 0:00:12]} 55. Qxf7+ {[%clk 0:00:20]}  Kh6 {[%clk 0:00:11]} 56. Qf8+ {[%clk 0:00:21]} 1-0


[Site "Internet"]

[Event "Chessable Masters - Torneo preliminare"]
[White "Sattarov, Bobir"]
[Black "Girya, Olga"]
[WhiteFideId "14203081"]
[BlackFideId "4195752"]
[WhiteElo "2333"]
[BlackElo "2327"]
[Result "1-0"]
[Round "9"]
[TimeControl "600+2"]
[Date "2023.03.13"]
[WhiteClock "0:08:41"]
[BlackClock "0:00:40"]

1. e4 {[%clk 0:10:01]}  e5 {[%clk 0:10:00]} 2. Nf3 {[%clk 0:10:02]}  Nc6 {[%clk 0:10:01]} 3. Nc3 {[%clk 0:10:03]}  Nf6 {[%clk 0:10:02]} 4. a3 {[%clk 0:10:03]}  d5 {[%clk 0:10:02]} 5. Bb5 {[%clk 0:10:04]}  Nxe4 {[%clk 0:10:03]} 6. Nxe5 {[%clk 0:10:05]}  Qf6 {[%clk 0:10:03]} 7. Nf3 {[%clk 0:10:05]}  Be6 {[%clk 0:10:03]} 8. O-O {[%clk 0:10:03]}  Bd6 {[%clk 0:10:00]} 9. Re1 {[%clk 0:09:55]}  O-O {[%clk 0:10:00]} 10. Nxe4 {[%clk 0:09:54]}  dxe4 {[%clk 0:10:01]} 11. Bxc6 {[%clk 0:09:55]}  bxc6 {[%clk 0:09:30]} 12. Rxe4 {[%clk 0:09:56]}  Bd5 {[%clk 0:09:24]} 13. Re3 {[%clk 0:09:55]}  Bf4 {[%clk 0:09:19]} 14. Re1 {[%clk 0:09:49]}  Rfe8 {[%clk 0:08:35]} 15. d3 {[%clk 0:09:43]}  Bxf3 {[%clk 0:08:23]} 16. Rxe8+ {[%clk 0:09:36]}  Rxe8 {[%clk 0:08:23]} 17. gxf3 {[%clk 0:09:38]}  Re6 {[%clk 0:06:05]} 18. Bxf4 {[%clk 0:09:38]}  Qxf4 {[%clk 0:06:06]} 19. Kh1 {[%clk 0:09:39]}  Rh6 {[%clk 0:06:02]} 20. Qg1 {[%clk 0:09:40]}  Rg6 {[%clk 0:05:14]} 21. Qd1 {[%clk 0:09:36]}  Qf5 {[%clk 0:03:54]} 22. Qe2 {[%clk 0:09:05]}  Re6 {[%clk 0:03:54]} 23. Qd1 {[%clk 0:09:06]}  h5 {[%clk 0:03:24]} 24. d4 {[%clk 0:08:44]}  h4 {[%clk 0:03:17]} 25. Qd3 {[%clk 0:08:39]}  Qxd3 {[%clk 0:03:17]} 26. cxd3 {[%clk 0:08:40]}  h3 {[%clk 0:03:18]} 27. Kg1 {[%clk 0:08:35]}  Re2 {[%clk 0:03:12]} 28. b4 {[%clk 0:08:31]}  Rd2 {[%clk 0:02:50]} 29. Kf1 {[%clk 0:08:32]}  Rxd3 {[%clk 0:02:47]} 30. Rc1 {[%clk 0:08:33]}  Rxa3 {[%clk 0:02:33]} 31. Rxc6 {[%clk 0:08:34]}  Ra1+ {[%clk 0:02:25]} 32. Ke2 {[%clk 0:08:35]}  Rh1 {[%clk 0:02:26]} 33. Rxc7 {[%clk 0:08:36]}  Rxh2 {[%clk 0:02:25]} 34. d5 {[%clk 0:08:38]}  Rh1 {[%clk 0:02:21]} 35. d6 {[%clk 0:08:38]}  h2 {[%clk 0:00:54]} 36. d7 {[%clk 0:08:39]}  Rd1 {[%clk 0:00:39]} 37. Kxd1 {[%clk 0:08:39]}  h1=Q+ {[%clk 0:00:40]} 38. Ke2 {[%clk 0:08:41]} 1-0


[Site "Internet"]

[Event "Chessable Masters - Torneo preliminare"]
[White "Jonkman, Harmen"]
[Black "Kaufman, Lawrence"]
[WhiteFideId "1002708"]
[BlackFideId "2000555"]
[WhiteElo "2351"]
[BlackElo "2198"]
[Result "1-0"]
[Round "9"]
[TimeControl "600+2"]
[Date "2023.03.13"]
[WhiteClock "0:00:57"]
[BlackClock "0:00:10"]

1. d4 {[%clk 0:09:58]}  Nf6 {[%clk 0:09:59]} 2. Nf3 {[%clk 0:09:56]}  d5 {[%clk 0:09:58]} 3. Bf4 {[%clk 0:09:56]}  e6 {[%clk 0:09:58]} 4. e3 {[%clk 0:09:56]}  Bd6 {[%clk 0:09:57]} 5. Nbd2 {[%clk 0:09:54]}  Bxf4 {[%clk 0:09:42]} 6. exf4 {[%clk 0:09:55]}  O-O {[%clk 0:09:39]} 7. Bd3 {[%clk 0:09:54]}  b6 {[%clk 0:09:40]} 8. Qe2 {[%clk 0:09:48]}  c5 {[%clk 0:09:14]} 9. c3 {[%clk 0:09:37]}  a5 {[%clk 0:09:04]} 10. Ne5 {[%clk 0:09:22]}  Ba6 {[%clk 0:08:29]} 11. h4 {[%clk 0:08:47]}  Bxd3 {[%clk 0:07:45]} 12. Qxd3 {[%clk 0:08:46]}  Qc7 {[%clk 0:07:00]} 13. h5 {[%clk 0:07:30]}  Nc6 {[%clk 0:06:49]} 14. Nxc6 {[%clk 0:07:09]}  Qxc6 {[%clk 0:06:47]} 15. Nf3 {[%clk 0:07:05]}  cxd4 {[%clk 0:06:22]} 16. Nxd4 {[%clk 0:06:56]}  Qc5 {[%clk 0:05:28]} 17. h6 {[%clk 0:06:47]}  g6 {[%clk 0:05:22]} 18. O-O {[%clk 0:06:18]}  Rfc8 {[%clk 0:04:58]} 19. f5 {[%clk 0:05:38]}  e5 {[%clk 0:04:18]} 20. Nb5 {[%clk 0:04:54]}  Qc4 {[%clk 0:03:25]} 21. Qxc4 {[%clk 0:04:20]}  Rxc4 {[%clk 0:03:20]} 22. Rae1 {[%clk 0:04:06]}  Ne4 {[%clk 0:03:04]} 23. f3 {[%clk 0:03:33]}  Ng3 {[%clk 0:03:03]} 24. Rf2 {[%clk 0:03:32]}  Rh4 {[%clk 0:02:39]} 25. Rd2 {[%clk 0:03:31]}  e4 {[%clk 0:01:52]} 26. Nc7 {[%clk 0:03:05]}  Rb8 {[%clk 0:01:18]} 27. f6 {[%clk 0:02:19]}  exf3 {[%clk 0:00:43]} 28. Nxd5 {[%clk 0:01:42]}  Rh1+ {[%clk 0:00:24]} 29. Kf2 {[%clk 0:01:42]}  Rxe1 {[%clk 0:00:21]} 30. Kxe1 {[%clk 0:01:38]}  Ne4 {[%clk 0:00:16]} 31. Rd4 {[%clk 0:01:33]}  f2+ {[%clk 0:00:15]} 32. Kf1 {[%clk 0:01:27]}  Ng3+ {[%clk 0:00:12]} 33. Kxf2 {[%clk 0:01:26]}  Nf5 {[%clk 0:00:14]} 34. Ne7+ {[%clk 0:01:26]}  Kf8 {[%clk 0:00:09]} 35. Nxf5 {[%clk 0:01:27]}  gxf5 {[%clk 0:00:09]} 36. a4 {[%clk 0:01:26]}  Ke8 {[%clk 0:00:06]} 37. Rd5 {[%clk 0:01:24]}  Rd8 {[%clk 0:00:04]} 38. Rxd8+ {[%clk 0:01:08]}  Kxd8 {[%clk 0:00:06]} 39. b4 {[%clk 0:00:57]}  Kd7 {[%clk 0:00:08]} 40. bxa5 {[%clk 0:00:58]}  Ke6 {[%clk 0:00:10]} 41. a6 {[%clk 0:00:57]} 1-0